fUSD/lending_fUSD_20240606
["ID","MTS","AMOUNT","RATE_DAILY","PERIOD"]
[328661168,1717683045559,-681.05,0.00027671,4]
[328661169,1717683045571,-500.0,0.00027671,4]
[328661170,1717683045581,-830.47,0.00027671,4]
[328661171,1717683045591,-612.78430134,0.00027671,4]
[328661172,1717683045600,-500.0,0.00027671,4]
[328661173,1717683045611,-533.17470043,0.00027671,4]
[328661174,1717683045620,-1038.65,0.00027671,4]
[328661175,1717683045630,-500.0,0.00027671,4]
[328661176,1717683045640,-500.0,0.00027671,4]
[328661177,1717683045650,-500.0,0.00027671,4]
[328661178,1717683045660,-500.0,0.00027671,4]
[328661179,1717683045670,-500.0,0.00027671,4]
[328661180,1717683045680,-500.0,0.00027671,4]
[328661181,1717683045689,-585.26,0.00027671,4]
[328661182,1717683045699,-500.0,0.00027671,4]
[328661183,1717683045708,-1004.52,0.00027671,4]
[328661184,1717683045718,-500.0,0.00027671,4]
[328661185,1717683045728,-500.0,0.00027671,4]
[328661186,1717683045737,-1073.71,0.00027671,4]
[328661187,1717683045746,-500.0,0.00027671,4]
[328661188,1717683045756,-585.91,0.00027671,4]
[328661189,1717683045766,-596.18,0.00027671,4]
[328661190,1717683045775,-543.99,0.00027671,4]
[328661191,1717683045784,-1610.59511653,0.00027671,4]
[328661197,1717683046018,-404.78636156,0.00027671,4]
[328661198,1717683046034,-389.91,0.00027397,4]
[328661199,1717683046043,-940.95852191,0.00027671,4]
[328661200,1717683046053,-500.0,0.00027671,4]
[328661201,1717683046065,-1270.51,0.00027671,4]
[328661202,1717683046074,-5274.7,0.00027671,4]
[328661203,1717683046083,-532.29,0.00027671,4]
[328661204,1717683046092,-500.0,0.00027671,4]
[328661205,1717683046102,-610.77,0.00027671,4]
[328661206,1717683046112,-1393.93,0.00027671,4]
[328661207,1717683046121,-888.14,0.00027671,4]
[328661208,1717683046131,-3699.29,0.00027671,4]
[328661209,1717683046141,-500.0,0.00027671,4]
[328661210,1717683046150,-500.0,0.00027671,4]
[328661211,1717683046160,-500.0,0.00027671,4]
[328661212,1717683046169,-500.0,0.00027671,4]
[328661213,1717683046178,-610.91,0.00027671,4]
[328661214,1717683046188,-500.0,0.00027671,4]
[328661215,1717683046197,-2558.82,0.00027671,4]
[328661216,1717683046207,-500.0,0.00027671,4]
[328661217,1717683046216,-500.0,0.00027671,4]
[328661218,1717683046226,-500.0,0.00027671,4]
[328661219,1717683046235,-2815.93,0.00027671,4]
[328661220,1717683046244,-634.77,0.00027671,4]
[328661221,1717683046254,-500.0,0.00027671,4]
[328661222,1717683046263,-742.62,0.00027671,4]
[328661223,1717683046273,-513.38,0.00027671,4]
[328661224,1717683046282,-500.0,0.00027671,4]
[328661225,1717683046291,-500.0,0.00027671,4]
[328661226,1717683046301,-500.0,0.00027671,4]
[328661227,1717683046310,-500.0,0.00027671,4]
[328661228,1717683046321,-500.0,0.00027671,4]
[328661229,1717683046330,-500.0,0.00027671,4]
[328661230,1717683046339,-500.0,0.00027671,4]
[328661231,1717683046350,-500.0,0.00027671,4]
[328661232,1717683046359,-500.0,0.00027671,4]
[328661233,1717683046369,-1456.81,0.00027671,4]
[328661234,1717683046379,-500.0,0.00027671,2]
[328661235,1717683046388,-500.0,0.00027671,4]
[328661236,1717683046398,-603.48,0.00027671,4]
[328661237,1717683046408,-506.53,0.00027671,4]
[328661238,1717683046422,-669.58,0.00027671,4]
[328661239,1717683046431,-500.0,0.00027671,4]
[328661240,1717683046441,-500.0,0.00027671,4]
[328661241,1717683046452,-500.0,0.00027671,4]
[328661242,1717683046462,-500.0,0.00027671,4]
[328661243,1717683046472,-500.0,0.00027671,4]
[328661244,1717683046482,-1406.7,0.00027671,4]
[328661245,1717683046494,-2393.95,0.00027671,4]
[328661246,1717683046504,-500.0,0.00027671,4]
[328661247,1717683046514,-4438.97,0.00027671,4]
[328661248,1717683046524,-500.0,0.00027671,4]
[328661249,1717683046533,-500.0,0.00027671,4]
[328661250,1717683046543,-500.0,0.00027671,4]
[328661251,1717683046552,-500.0,0.00027671,4]
[328661252,1717683046562,-500.0,0.00027671,4]
[328661253,1717683046572,-500.0,0.00027671,4]
[328661254,1717683046582,-727.93,0.00027671,4]
[328661255,1717683046592,-1151.3,0.00027671,4]
[328661256,1717683046601,-500.0,0.00027671,4]
[328661257,1717683046611,-500.0,0.00027671,4]
[328661258,1717683046620,-1673.74,0.00027671,4]
[328661259,1717683046630,-2730.1,0.00027671,4]
[328661260,1717683046640,-500.0,0.00027671,4]
[328661261,1717683046650,-500.0,0.00027671,4]
[328661262,1717683046661,-500.0,0.00027671,4]
[328661263,1717683046671,-500.0,0.00027671,4]
[328661264,1717683046681,-1555.57,0.00027671,4]
[328661265,1717683046691,-500.0,0.00027671,4]
[328661266,1717683046702,-500.0,0.00027671,4]
[328661268,1717683046712,-500.0,0.00027671,4]
[328661270,1717683046722,-2644.53,0.00027671,4]
[328661272,1717683046732,-505.15911283,0.00027671,4]
[328661274,1717683046742,-500.0,0.00027671,4]
[328661276,1717683046752,-500.0,0.00027671,4]
[328661277,1717683046762,-648.81,0.00027671,4]
[328661278,1717683046772,-500.0,0.00027671,4]
[328661279,1717683046782,-196.69577601,0.00027671,4]
[328661280,1717683046792,-242.13287537,0.00027671,4]
[328661281,1717683046802,-500.0,0.00027671,4]
[328661282,1717683046812,-500.0,0.00027671,4]
[328661283,1717683046824,-500.0,0.00027671,4]
[328661284,1717683046833,-500.0,0.00027671,4]
[328661285,1717683046844,-500.0,0.00027671,4]
[328661286,1717683046855,-687.06,0.00027671,4]
[328661287,1717683046865,-500.0,0.00027671,4]
[328661288,1717683046876,-536.61,0.00027671,4]
[328661289,1717683046886,-3792.6,0.00027671,4]
[328661290,1717683046896,-652.38,0.00027671,4]
[328661292,1717683046907,-500.0,0.00027671,4]
[328661294,1717683046917,-872.14,0.00027671,4]
[328661296,1717683046927,-500.0,0.00027671,4]
[328661298,1717683046937,-500.0,0.00027671,4]
[328661301,1717683046948,-1060.43,0.00027671,4]
[328661303,1717683046959,-1059.91,0.00027671,4]
[328661304,1717683046969,-1562.46,0.00027671,4]
[328661305,1717683046979,-556.09080047,0.00027671,4]
[328661306,1717683046989,-500.0,0.00027671,4]
[328661307,1717683046998,-523.22,0.00027671,4]
[328661308,1717683047008,-500.0,0.00027671,4]
[328661309,1717683047018,-500.0,0.00027671,4]
[328661310,1717683047029,-500.0,0.00027671,4]
[328661311,1717683047039,-500.0,0.00027671,4]
[328661312,1717683047050,-534.20313292,0.00027671,4]
[328661313,1717683047061,-2689.76,0.00027671,4]
[328661314,1717683047072,-596.44,0.00027671,4]
[328661315,1717683047082,-500.0,0.00027671,4]
[328661316,1717683047092,-500.0,0.00027671,4]
[328661317,1717683047102,-500.0,0.00027671,4]
[328661318,1717683047112,-500.0,0.00027671,4]
[328661319,1717683047122,-500.0,0.00027671,4]
[328661320,1717683047132,-500.0,0.00027671,4]
[328661321,1717683047142,-551.96,0.00027671,4]
[328661322,1717683047153,-3998.11,0.00027671,4]
[328661323,1717683047163,-500.0,0.00027671,4]
[328661324,1717683047173,-688.76,0.00027671,4]
[328661325,1717683047183,-1107.27,0.00027671,4]
[328661326,1717683047193,-500.0,0.00027671,4]
[328661327,1717683047203,-500.0,0.00027671,4]
[328661328,1717683047213,-500.0,0.00027671,4]
[328661329,1717683047223,-500.0,0.00027671,4]
[328661330,1717683047233,-1366.56,0.00027671,4]
[328661331,1717683047242,-500.0,0.00027671,4]
[328661332,1717683047252,-500.0,0.00027671,4]
[328661333,1717683047263,-500.0,0.00027671,4]
[328661334,1717683047273,-1249.74,0.00027671,4]
[328661335,1717683047284,-500.0,0.00027671,4]
[328661336,1717683047295,-162.38385552,0.00027671,4]
[328661337,1717683047305,-500.0,0.00027671,4]
[328661338,1717683047317,-500.0,0.00027671,4]
[328661339,1717683047327,-3019.69,0.00027671,4]
[328661340,1717683047338,-283.58832533,0.00027671,4]
[328661341,1717683047348,-683.79,0.00027671,4]
[328661342,1717683047359,-500.0,0.00027671,4]
[328661343,1717683047369,-3318.43,0.00027671,4]
[328661344,1717683047379,-500.0,0.00027671,4]
[328661345,1717683047390,-500.0,0.00027671,4]
[328661346,1717683047401,-500.0,0.00027671,4]
[328661347,1717683047411,-500.0,0.00027671,4]
[328661348,1717683047426,-500.0,0.00027671,4]
[328661349,1717683047437,-500.0,0.00027671,4]
[328661350,1717683047447,-1657.41,0.00027671,4]
[328661351,1717683047458,-500.0,0.00027671,4]
[328661352,1717683047468,-500.0,0.00027671,4]
[328661353,1717683047479,-764.19,0.00027671,4]
[328661354,1717683047490,-2543.25,0.00027671,4]
[328661355,1717683047503,-500.0,0.00027671,4]
[328661356,1717683047514,-500.0,0.00027671,4]
[328661357,1717683047524,-500.0,0.00027671,4]
[328661358,1717683047535,-500.0,0.00027671,4]
[328661359,1717683047545,-747.97,0.00027671,4]
[328661360,1717683047555,-500.0,0.00027671,4]
[328661361,1717683047566,-507.39,0.00027671,4]
[328661362,1717683047576,-2288.29,0.00027671,4]
[328661363,1717683047586,-500.0,0.00027671,4]
[328661364,1717683047597,-500.0,0.00027671,4]
[328661365,1717683047608,-500.0,0.00027671,4]
[328661366,1717683047618,-580.42,0.00027671,4]
[328661367,1717683047628,-1070.47,0.00027671,4]
[328661368,1717683047638,-500.0,0.00027671,4]
[328661369,1717683047649,-500.0,0.00027671,4]
[328661370,1717683047659,-500.0,0.00027671,4]
[328661371,1717683047669,-560.19,0.00027671,4]
[328661372,1717683047681,-3164.12,0.00027671,4]
[328661373,1717683047692,-500.0,0.00027671,4]
[328661374,1717683047703,-500.0,0.00027671,4]
[328661375,1717683047714,-500.0,0.00027671,4]
[328661376,1717683047725,-751.82,0.00027671,4]
[328661377,1717683047735,-556.75869594,0.00027671,4]
[328661378,1717683047747,-817.16,0.00027671,4]
[328661379,1717683047762,-932.85,0.00027671,4]
[328661380,1717683047776,-500.0,0.00027671,4]
[328661381,1717683047790,-577.62,0.00027671,4]
[328661382,1717683047803,-500.0,0.00027671,4]
[328661383,1717683047816,-556.39,0.00027671,4]
[328661384,1717683047828,-500.0,0.00027671,4]
[328661385,1717683047841,-500.0,0.00027671,4]
[328661386,1717683047854,-502.03,0.00027671,4]
[328661387,1717683047867,-1137.15,0.00027671,4]
[328661388,1717683047881,-1347.08,0.00027671,4]
[328661389,1717683047893,-500.0,0.00027671,4]
[328661390,1717683047908,-500.0,0.00027671,4]
[328661391,1717683047922,-500.0,0.00027671,4]
[328661392,1717683047935,-500.0,0.00027671,4]
[328661393,1717683047947,-550.28,0.00027671,4]
[328661394,1717683047959,-575.32,0.00027671,4]
[328661395,1717683047972,-506.62,0.00027671,4]
[328661396,1717683047984,-500.0,0.00027671,4]
[328661397,1717683047997,-2314.45,0.00027671,4]
[328661398,1717683048010,-500.0,0.00027671,4]
[328661399,1717683048030,-500.0,0.00027671,4]
[328661400,1717683048048,-618.6,0.00027671,4]
[328661401,1717683048062,-500.0,0.00027671,4]
[328661402,1717683048077,-675.98,0.00027671,4]
[328661403,1717683048092,-150.0,0.0002776,2]
[328661404,1717683048107,-1000.0,0.00027789,14]
[328661405,1717683048123,-800.0,0.000278,10]
[328661406,1717683048137,-150.0,0.0002785,2]
[328661407,1717683048152,-500.0,0.00027888,2]
[328661408,1717683048169,-1100.0,0.000279,10]
[328661409,1717683048186,-1000.0,0.00027919,14]
[328661410,1717683048198,-254.93585412,0.00027935,2]
[328661411,1717683048209,-261.5,0.00027935,15]
[328661412,1717683048220,-573.93237961,0.00027944,7]
[328661413,1717683048232,-500.0,0.00027945,4]
[328661414,1717683048248,-500.0,0.00027945,4]
[328661415,1717683048263,-500.0,0.00027945,4]
[328661416,1717683048277,-500.0,0.00027945,4]
[328661417,1717683048288,-500.0,0.00027945,4]
[328661418,1717683048300,-500.0,0.00027945,4]
[328661419,1717683048314,-500.0,0.00027945,4]
[328661420,1717683048330,-500.0,0.00027945,4]
[328661421,1717683048343,-500.0,0.00027945,4]
[328661422,1717683048355,-500.0,0.00027945,4]
[328661423,1717683048366,-500.0,0.00027945,4]
[328661424,1717683048378,-638.59,0.00027945,4]
[328661425,1717683048391,-500.0,0.00027945,4]
[328661426,1717683048404,-500.0,0.00027945,4]
[328661427,1717683048419,-500.0,0.00027945,4]
[328661428,1717683048432,-119.52406341,0.00027945,4]
[328661429,1717683048453,-380.47593659,0.00027945,4]
[328661430,1717683048467,-500.0,0.00027945,4]
[328661431,1717683048484,-500.0,0.00027945,4]
[328661432,1717683048498,-500.0,0.00027945,4]
[328661433,1717683048510,-500.0,0.00027945,4]
[328661434,1717683048522,-500.0,0.00027945,4]
[328661435,1717683048534,-500.0,0.00027945,4]
[328661436,1717683048547,-132.06978158,0.00027945,4]
[328661437,1717683048564,-540.18000005,0.00027945,4]
[328661438,1717683048579,-429.20021837,0.00027945,4]
[328661439,1717683048591,-500.0,0.00027945,4]
[328661440,1717683048603,-209.87753406,0.00027945,4]
[328661441,1717683048776,-531.80188952,0.00027397,4]
[328661442,1717683048792,-117.63811048,0.00027397,4]
[328661443,1717683048805,-290.12246594,0.00027945,4]
[328661444,1717683048819,-100.5262992,0.00027945,4]
[328661445,1717683048833,-268.77602007,0.00027945,4]
[328661446,1717683048850,-130.69768073,0.00027945,4]
[328661447,1717683048863,-159.67046644,0.00027945,4]
[328661448,1717683048876,-500.0,0.00027945,4]
[328661449,1717683048889,-500.0,0.00027945,4]
[328661450,1717683048902,-500.0,0.00027945,4]
[328661451,1717683048914,-500.0,0.00027945,4]
[328661452,1717683048926,-544.81906592,0.00027945,4]
[328661453,1717683048939,-500.0,0.00027945,4]
[328661454,1717683048953,-509.75983041,0.00027945,4]
[328661455,1717683048965,-269.12,0.00027945,4]
[328661456,1717683048977,-500.0,0.00027945,4]
[328661457,1717683048989,-511.31888871,0.00027945,4]
[328661458,1717683049002,-500.0,0.00027945,4]
[328661459,1717683049014,-500.0,0.00027945,4]
[328661460,1717683049025,-500.0,0.00027945,4]
[328661461,1717683049037,-500.0,0.00027945,4]
[328661462,1717683049048,-500.0,0.00027945,4]
[328661463,1717683049060,-361.84787801,0.00027945,4]
[328661464,1717683049073,-500.0,0.00027945,4]
[328661465,1717683049085,-500.0,0.00027945,4]
[328661466,1717683049096,-500.0,0.00027945,4]
[328661467,1717683049109,-500.0,0.00027945,4]
[328661468,1717683049120,-500.0,0.00027945,4]
[328661469,1717683049131,-500.0,0.00027945,4]
[328661470,1717683049143,-500.0,0.00027945,4]
[328661471,1717683049154,-500.0,0.00027945,4]
[328661472,1717683049166,-500.0,0.00027945,4]
[328661473,1717683049177,-500.0,0.00027945,4]
[328661474,1717683049191,-500.0,0.00027945,4]
[328661475,1717683049202,-500.0,0.00027945,4]
[328661476,1717683049214,-500.0,0.00027945,4]
[328661477,1717683049226,-500.0,0.00027945,4]
[328661478,1717683049237,-726.27,0.00027945,4]
[328661479,1717683049249,-500.0,0.00027945,4]
[328661480,1717683049260,-500.0,0.00027945,4]
[328661481,1717683049272,-500.0,0.00027945,4]
[328661482,1717683049284,-632.46,0.00027945,4]
[328661483,1717683049296,-500.0,0.00027945,4]
[328661484,1717683049307,-500.0,0.00027945,2]
[328661485,1717683049320,-500.0,0.00027945,4]
[328661486,1717683049332,-500.0,0.00027945,4]
[328661487,1717683049343,-500.0,0.00027945,4]
[328661488,1717683049354,-500.0,0.00027945,4]
[328661489,1717683049366,-500.0,0.00027945,4]
[328661490,1717683049377,-500.0,0.00027945,4]
[328661491,1717683049388,-987.99,0.00027945,4]
[328661492,1717683049400,-1077.57,0.00027945,4]
[328661493,1717683049412,-500.0,0.00027945,4]
[328661494,1717683049427,-1145.5,0.00027945,4]
[328661495,1717683049439,-500.0,0.00027945,2]
[328661496,1717683049450,-500.0,0.00027945,4]
[328661497,1717683049463,-500.0,0.00027945,4]
[328661498,1717683049474,-500.0,0.00027945,4]
[328661499,1717683049486,-500.0,0.00027945,4]
[328661500,1717683049500,-500.0,0.00027945,4]
[328661501,1717683049512,-919.25,0.00027945,4]
[328661502,1717683049524,-500.0,0.00027945,4]
[328661503,1717683049535,-500.0,0.00027945,4]
[328661504,1717683049547,-500.0,0.00027945,4]
[328661505,1717683049558,-500.0,0.00027945,4]
[328661506,1717683049571,-500.0,0.00027945,4]
[328661507,1717683049582,-500.0,0.00027945,4]
[328661508,1717683049594,-500.0,0.00027945,4]
[328661509,1717683049606,-500.0,0.00027945,4]
[328661510,1717683049618,-500.0,0.00027945,4]
[328661511,1717683049630,-500.0,0.00027945,4]
[328661512,1717683049641,-802.38,0.00027945,4]
[328661513,1717683049653,-504.8,0.00027945,4]
[328661514,1717683049665,-797.65,0.00027945,4]
[328661515,1717683049676,-500.0,0.00027945,4]
[328661516,1717683049688,-500.0,0.00027945,4]
[328661517,1717683049701,-500.0,0.00027945,4]
[328661518,1717683049712,-472.66172349,0.00027945,4]
[328661519,1717683049724,-500.0,0.00027945,4]
[328661520,1717683049735,-500.0,0.00027945,4]
[328661521,1717683049746,-372.86261624,0.00027945,4]
[328661522,1717683049757,-500.0,0.00027945,4]
[328661523,1717683049769,-547.0,0.00027945,4]
[328661524,1717683049780,-500.0,0.00027945,4]
[328661525,1717683049792,-500.0,0.00027945,4]
[328661526,1717683049803,-577.35,0.00027945,4]
[328661527,1717683049815,-838.79,0.00027945,4]
[328661528,1717683049828,-500.0,0.00027945,4]
[328661529,1717683049840,-800.02,0.00027945,4]
[328661530,1717683049851,-500.0,0.00027945,4]
[328661531,1717683049862,-500.0,0.00027945,4]
[328661532,1717683049874,-974.14,0.00027945,4]
[328661533,1717683049884,-500.0,0.00027945,4]
[328661534,1717683049893,-500.0,0.00027945,4]
[328661535,1717683049903,-500.0,0.00027945,4]
[328661536,1717683049914,-500.0,0.00027945,4]
[328661537,1717683049924,-500.0,0.00027945,4]
[328661538,1717683049933,-521.06,0.00027945,4]
[328661539,1717683049944,-500.0,0.00027945,4]
[328661540,1717683049953,-500.0,0.00027945,4]
[328661541,1717683049964,-500.0,0.00027945,4]
[328661542,1717683049974,-500.0,0.00027945,4]
[328661543,1717683049986,-500.0,0.00027945,4]
[328661544,1717683049996,-500.0,0.00027945,4]
[328661545,1717683050007,-500.0,0.00027945,4]
[328661546,1717683050019,-500.0,0.00027945,4]
[328661547,1717683050030,-500.0,0.00027945,4]
[328661548,1717683050040,-500.0,0.00027945,4]
[328661549,1717683050050,-666.21,0.00027945,2]
[328661550,1717683050069,-500.0,0.00027945,4]
[328661551,1717683050081,-500.0,0.00027945,4]
[328661552,1717683050091,-500.0,0.00027945,4]
[328661553,1717683050102,-500.0,0.00027945,4]
[328661554,1717683050112,-500.0,0.00027945,4]
[328661555,1717683050122,-500.0,0.00027945,4]
[328661556,1717683050133,-533.25,0.00027945,4]
[328661557,1717683050142,-2202.3,0.00027945,4]
[328661558,1717683050152,-500.0,0.00027945,4]
[328661559,1717683050162,-500.0,0.00027945,4]
[328661560,1717683050172,-500.0,0.00027945,4]
[328661561,1717683050182,-500.0,0.00027945,4]
[328661562,1717683050192,-500.0,0.00027945,4]
[328661563,1717683050202,-500.0,0.00027945,4]
[328661564,1717683050212,-406.70437064,0.00027945,4]
[328661565,1717683050222,-179.46085527,0.00027945,4]
[328661566,1717683050231,-500.0,0.00027945,4]
[328661567,1717683050241,-657.59,0.00027945,4]
[328661568,1717683050251,-714.91,0.00027945,4]
[328661569,1717683050260,-500.0,0.00027945,4]
[328661570,1717683050270,-500.0,0.00027945,4]
[328661571,1717683050279,-663.54,0.00027945,4]
[328661572,1717683050289,-500.0,0.00027945,4]
[328661573,1717683050299,-500.0,0.00027945,4]
[328661574,1717683050309,-500.0,0.00027945,4]
[328661575,1717683050320,-500.0,0.00027945,4]
[328661576,1717683050331,-814.59,0.00027945,4]
[328661577,1717683050341,-151.0,0.00027945,7]
[328661578,1717683050351,-500.0,0.00027945,4]
[328661579,1717683050361,-500.0,0.00027945,4]
[328661580,1717683050371,-500.0,0.00027945,4]
[328661581,1717683050381,-647.64365143,0.00027945,4]
[328661582,1717683050391,-566.62,0.00027945,4]
[328661583,1717683050401,-500.0,0.00027945,4]
[328661584,1717683050412,-500.0,0.00027945,4]
[328661585,1717683050426,-500.0,0.00027945,4]
[328661586,1717683050872,-500.0,0.00027945,4]
[328661587,1717683050895,-500.0,0.00027945,4]
[328661588,1717683050912,-500.0,0.00027945,4]
[328661589,1717683050925,-500.0,0.00027945,4]
[328661590,1717683050934,-500.0,0.00027945,4]
[328661591,1717683050943,-500.0,0.00027945,4]
[328661592,1717683050953,-500.0,0.00027945,4]
[328661593,1717683050963,-500.0,0.00027945,4]
[328661594,1717683050973,-500.0,0.00027945,4]
[328661595,1717683050986,-500.0,0.00027945,4]
[328661596,1717683050996,-500.0,0.00027945,4]
[328661597,1717683051005,-500.0,0.00027945,4]
[328661598,1717683051015,-500.0,0.00027945,4]
[328661599,1717683051024,-500.0,0.00027945,4]
[328661600,1717683051034,-500.0,0.00027945,4]
[328661601,1717683051043,-500.0,0.00027945,4]
[328661602,1717683051053,-500.0,0.00027945,4]
[328661603,1717683051062,-580.99,0.00027945,4]
[328661604,1717683051073,-500.0,0.00027945,4]
[328661605,1717683051082,-500.0,0.00027945,4]
[328661606,1717683051094,-500.0,0.00027945,4]
[328661607,1717683051104,-500.0,0.00027945,4]
[328661608,1717683051115,-500.0,0.00027945,4]
[328661609,1717683051125,-500.0,0.00027945,4]
[328661610,1717683051135,-500.0,0.00027945,4]
[328661611,1717683051145,-522.8,0.00027945,4]
[328661612,1717683051156,-500.0,0.00027945,4]
[328661613,1717683051168,-500.0,0.00027945,4]
[328661614,1717683051177,-500.0,0.00027945,4]
[328661615,1717683051188,-500.0,0.00027945,4]
[328661616,1717683051198,-500.0,0.00027945,4]
[328661617,1717683051207,-500.0,0.00027945,4]
[328661618,1717683051216,-511.71,0.00027945,4]
[328661619,1717683051227,-500.0,0.00027945,4]
[328661620,1717683051237,-500.0,0.00027945,4]
[328661621,1717683051246,-500.0,0.00027945,4]
[328661622,1717683051257,-586.2,0.00027945,4]
[328661623,1717683051267,-500.0,0.00027945,4]
[328661624,1717683051277,-500.0,0.00027945,4]
[328661625,1717683051286,-500.0,0.00027945,4]
[328661626,1717683051296,-500.0,0.00027945,4]
[328661627,1717683051305,-500.0,0.00027945,4]
[328661628,1717683051315,-500.0,0.00027945,4]
[328661629,1717683051325,-500.0,0.00027945,4]
[328661630,1717683051335,-500.0,0.00027945,4]
[328661631,1717683051346,-500.0,0.00027945,4]
[328661632,1717683051356,-500.0,0.00027945,4]
[328661633,1717683051366,-500.0,0.00027945,4]
[328661634,1717683051376,-500.0,0.00027945,4]
[328661635,1717683051388,-612.73,0.00027945,4]
[328661636,1717683051397,-500.0,0.00027945,4]
[328661637,1717683051406,-500.0,0.00027945,4]
[328661638,1717683051416,-500.0,0.00027945,4]
[328661639,1717683051429,-538.0,0.00027945,4]
[328661640,1717683051438,-500.0,0.00027945,4]
[328661641,1717683051447,-500.0,0.00027945,4]
[328661642,1717683051459,-500.0,0.00027945,4]
[328661643,1717683051468,-500.0,0.00027945,4]
[328661644,1717683051479,-528.0,0.00027945,4]
[328661645,1717683051488,-500.0,0.00027945,4]
[328661646,1717683051498,-500.0,0.00027945,4]
[328661647,1717683051508,-500.0,0.00027945,4]
[328661648,1717683051518,-966.61,0.00027945,4]
[328661649,1717683051527,-500.0,0.00027945,4]
[328661650,1717683051536,-500.0,0.00027945,4]
[328661651,1717683051546,-560.38240812,0.00027945,4]
[328661652,1717683051555,-500.0,0.00027945,4]
[328661653,1717683051565,-500.0,0.00027945,4]
[328661654,1717683051574,-500.0,0.00027945,4]
[328661655,1717683051583,-500.0,0.00027945,4]
[328661656,1717683051593,-500.0,0.00027945,4]
[328661657,1717683051602,-500.0,0.00027945,4]
[328661658,1717683051612,-500.0,0.00027945,4]
[328661659,1717683051621,-676.29,0.00027945,4]
[328661660,1717683051631,-639.9,0.00027945,4]
[328661661,1717683051641,-500.0,0.00027945,4]
[328661662,1717683051650,-454.64994323,0.00027945,4]
[328661663,1717683051659,-500.0,0.00027945,4]
[328661664,1717683051669,-500.0,0.00027945,4]
[328661665,1717683051678,-500.0,0.00027945,4]
[328661666,1717683051688,-500.0,0.00027945,4]
[328661667,1717683051697,-500.0,0.00027945,4]
[328661668,1717683051706,-892.2,0.00027945,4]
[328661669,1717683051716,-205.78,0.00027945,4]
[328661670,1717683051725,-1019.57,0.00027945,4]
[328661671,1717683051735,-500.0,0.00027945,4]
[328661672,1717683051744,-508.41,0.00027945,4]
[328661673,1717683051753,-500.0,0.00027945,4]
[328661674,1717683051763,-500.0,0.00027945,4]
[328661675,1717683051772,-545.1,0.00027945,2]
[328661676,1717683051782,-500.0,0.00027945,4]
[328661677,1717683051791,-1335.76,0.00027945,4]
[328661678,1717683051801,-500.0,0.00027945,4]
[328661679,1717683051810,-500.0,0.00027945,4]
[328661680,1717683051820,-500.0,0.00027945,4]
[328661681,1717683051829,-500.0,0.00027945,4]
[328661682,1717683051839,-500.0,0.00027945,4]
[328661683,1717683051848,-972.64,0.00027945,4]
[328661684,1717683051858,-500.0,0.00027945,4]